bitfinex-derivatives/quotes_SOLF0:USTF0_20250125
["timestamp","ask_amount","ask_price","bid_price","bid_amount"]
[1737807450394,0.0302338,249.6,249.59,9.95426335]
[1737807450889,1.3591,249.73,249.59,5.94716335]
[1737807451093,5.94716335,249.74,249.67,5.94716335]
[1737807451289,1.3948,249.72,249.67,9.95296335]
[1737807451492,5.94716335,249.74,249.67,5.94716335]
[1737807451698,5.94716335,249.74,249.65,5.94716335]
[1737807451897,0.02865575,249.67,249.63,5.94716335]
[1737807452099,4.0055,249.7,249.63,5.94716335]
[1737807452395,0.02564537,249.67,249.63,5.97324066]
[1737807460106,0.02564537,249.67,249.63,0.02607731]
[1737807460107,4.03144537,249.67,249.63,0.02607731]
[1737807460407,4.006,249.66,249.63,0.02607731]
[1737807462004,4.0063,249.64,249.56,9.95476335]
[1737807462205,5.94716335,249.65,249.56,9.95476335]
[1737807462405,5.94716335,249.65,249.56,5.94716335]
[1737807462607,4.0064,249.64,249.58,5.94716335]
[1737807463209,0.02546369,249.63,249.59,0.02658388]
[1737807464012,4.03196369,249.63,249.59,0.02658388]
[1737807464912,0.02546369,249.63,249.62,5.94716335]
[1737807465608,0.02546369,249.63,249.6,5.94716335]
[1737807465912,0.02546369,249.63,249.61,4.0067]
[1737807466711,0.02546369,249.63,249.62,4.0066]
[1737807466911,0.02546369,249.63,249.62,9.95376335]
[1737807467111,5.94716335,249.74,249.62,5.94716335]
[1737807467314,5.94716335,249.74,249.66,4.0059]
[1737807467512,4.0049,249.73,249.66,4.0059]
[1737807467712,4.0049,249.73,249.67,5.94716335]
[1737807468015,1.3945,249.75,249.64,4.0062]
[1737807468016,5.94716335,249.72,249.64,4.0062]
[1737807468214,5.94716335,249.7,249.61,5.94716335]
[1737807468417,5.976794,249.7,249.66,0.03077643]
[1737807468714,4.0058,249.67,249.66,0.03077643]
[1737807469120,5.976794,249.7,249.66,0.03077643]
[1737807469313,4.0056,249.69,249.66,0.03077643]
[1737807469513,5.976794,249.7,249.66,0.03077643]
[1737807470317,0.02963065,249.7,249.67,5.94716335]
[1737807472018,0.02963065,249.7,249.66,4.03677643]
[1737807472223,0.02963065,249.7,249.66,0.03077643]
[1737807472425,0.02963065,249.7,249.67,5.94716335]
[1737807472925,0.02963065,249.7,249.69,5.94716335]
[1737807474228,0.02963065,249.7,249.69,9.95266335]
[1737807479627,4.0041,249.78,249.71,4.005]
[1737807479932,4.0041,249.78,249.72,5.94716335]
[1737807480134,4.0046,249.75,249.7,5.94716335]
[1737807480834,4.0047,249.74,249.7,0.02584418]
[1737807482033,4.03393038,249.75,249.7,0.02584418]
[1737807483639,4.0051,249.72,249.7,0.02584418]
[1737807484338,4.0049,249.73,249.7,0.02584418]
[1737807485034,11.22126335,249.74,249.7,0.02584418]
[1737807485231,5.2741,249.74,249.7,0.02584418]
[1737807485633,1.2694,249.74,249.7,0.02584418]
[1737807485837,4.0049,249.73,249.7,0.02584418]
[1737807487236,4.005,249.72,249.7,0.02584418]
[1737807487435,7.21656335,249.74,249.7,0.02584418]
[1737807490139,4.0052,249.72,249.7,0.02584418]
[1737807490339,7.21656335,249.74,249.7,0.02584418]
[1737807490739,4.0052,249.71,249.7,0.02584418]
[1737807494839,4.0056,249.69,249.62,9.95376335]
[1737807495541,4.0056,249.69,249.64,5.94716335]
[1737807496039,4.03563408,249.69,249.64,5.97563426]
[1737807497440,4.0061,249.65,249.64,0.02847091]
[1737807507647,9.95326335,249.65,249.64,0.02847091]
[1737807510253,9.95316335,249.67,249.64,0.02847091]
[1737807510650,9.98269743,249.69,249.64,0.02847091]
[1737807511153,0.03003408,249.69,249.64,0.02847091]
[1737807511849,4.03553408,249.69,249.64,0.02847091]
[1737807512357,4.006,249.66,249.64,0.02847091]
[1737807512551,5.94716335,249.67,249.64,0.02847091]
[1737807513057,4.0061,249.65,249.64,0.02847091]
[1737807517055,9.95326335,249.65,249.64,0.02847091]
[1737807517960,4.0061,249.65,249.64,0.02847091]
[1737807518757,4.006,249.67,249.64,0.02847091]
[1737807518958,5.97719743,249.69,249.64,0.02847091]
[1737807520560,4.006,249.67,249.64,0.02847091]
[1737807521062,5.97719743,249.69,249.64,0.02847091]
[1737807521766,4.0057,249.68,249.64,0.02847091]
[1737807521965,5.97719743,249.69,249.64,0.02847091]
[1737807521966,5.94716335,249.65,249.64,0.02847091]
[1737807523066,9.95326335,249.65,249.64,0.02847091]
[1737807524261,9.95326335,249.65,249.54,6.50032704]
[1737807524262,5.94716335,249.65,249.54,6.50032704]
[1737807524562,5.94716335,249.56,249.46,5.94716335]
[1737807524769,5.94716335,249.52,249.44,5.94716335]
[1737807525467,0.02917235,249.5,249.46,0.02736354]
[1737807526359,5.94716335,249.47,249.46,0.02736354]
[1737807530671,4.0093,249.46,249.36,5.94716335]
[1737807530872,5.94716335,249.44,249.36,5.94716335]
[1737807531661,5.94716335,249.42,249.34,8.52566335]
[1737807531862,5.97567561,249.42,249.38,0.02964008]
[1737807532172,5.94716335,249.4,249.38,0.02964008]
[1737807533276,0.02851226,249.42,249.38,0.02964008]
[1737807533277,5.97567561,249.42,249.38,0.02964008]
[1737807533471,0.02851226,249.42,249.38,0.02964008]
[1737807534672,0.02851226,249.42,249.38,5.97680343]
[1737807535576,0.02851226,249.42,249.4,4.0101]
[1737807535871,0.02851226,249.42,249.38,5.97680343]
[1737807536267,0.02851226,249.42,249.39,4.0103]
[1737807536475,0.02851226,249.42,249.38,0.02964008]
[1737807540077,4.03831226,249.42,249.38,0.02964008]
[1737807542380,0.02851226,249.42,249.38,0.02964008]
[1737807545378,5.94716335,249.41,249.38,0.02964008]
[1737807545684,5.94716335,249.39,249.38,0.02964008]
[1737807547080,9.95746335,249.39,249.38,0.02964008]
[1737807551586,5.94716335,249.35,249.28,4.012]
[1737807552285,5.94716335,249.35,249.27,5.94716335]
[1737807552286,5.94716335,249.33,249.26,6.7475]
[1737807552487,5.94716335,249.33,249.29,0.02598445]
[1737807553981,9.95896335,249.3,249.29,0.02598445]
[1737807555286,4.0121,249.28,249.25,5.45488976]
[1737807555589,5.94716335,249.26,249.25,5.45488976]
[1737807556082,5.94716335,249.26,249.18,4.0136]
[1737807556287,5.94716335,249.23,249.15,5.94716335]
[1737807556483,5.94716335,249.23,249.2,0.02576868]
[1737807557381,5.94716335,249.21,249.2,0.02576868]
[1737807558686,5.94716335,249.15,249.1,4.015]
[1737807558986,5.94716335,249.15,249.07,7.34196335]
[1737807559288,5.94716335,249.13,249.08,4.0153]
[1737807559683,5.94716335,249.13,249.08,4.0447487]
[1737807559880,5.97582458,249.13,249.08,4.0447487]
[1737807560189,5.97582458,249.13,249.08,0.0294487]
[1737807561789,5.97582458,249.13,249.08,4.0447487]
[1737807561992,5.97582458,249.13,249.08,0.0294487]
[1737807562194,5.97582458,249.13,249.09,4.0151]
[1737807562392,0.02866123,249.13,249.08,0.0294487]
[1737807562595,0.02866123,249.13,249.09,5.94716335]
[1737807564195,0.02866123,249.13,249.11,4.0147]
[1737807565994,0.02866123,249.13,249.12,4.0147]
[1737807567295,5.94716335,249.23,249.14,4.0142]
[1737807567495,5.94716335,249.23,249.14,5.94716335]
[1737807568297,5.9741839,249.21,249.16,0.03081965]
[1737807568601,5.94716335,249.21,249.12,5.94716335]
[1737807568798,5.97341798,249.21,249.17,4.0138]
[1737807570598,5.97341798,249.21,249.16,0.02919362]
[1737807570798,5.94716335,249.19,249.16,0.02919362]
[1737807576100,5.97341798,249.21,249.16,0.02919362]
[1737807577007,5.94716335,249.19,249.16,0.02919362]
[1737807577504,5.97341798,249.21,249.16,0.02919362]
[1737807579108,5.97341798,249.21,249.16,4.04309362]
[1737807579304,0.02625463,249.21,249.16,4.04309362]
[1737807579509,0.02625463,249.21,249.16,0.02919362]
[1737807579808,0.02625463,249.21,249.17,4.0138]
[1737807581606,5.97341798,249.21,249.16,0.02919362]
[1737807582111,5.94716335,249.19,249.16,0.02919362]
[1737807582702,9.96076335,249.19,249.16,0.02919362]
[1737807583805,5.94716335,249.17,249.16,0.02919362]
[1737807584904,5.94716335,249.17,249.1,4.015]
[1737807585109,5.94716335,249.15,249.1,4.015]
[1737807585609,5.94716335,249.15,249.08,5.94716335]
[1737807586109,5.94716335,249.15,249.04,2.56]
[1737807586110,0.03052335,249.14,249.09,0.02876751]
[1737807587110,4.04492335,249.14,249.09,0.02876751]
[1737807587312,5.94716335,249.13,249.09,0.02876751]
[1737807587513,5.94716335,249.11,249.09,0.02876751]
[1737807587808,9.96206335,249.11,249.09,0.02876751]
[1737807588216,4.015,249.1,249.09,0.02876751]
[1737807594120,4.0156,249.06,248.98,4.0168]
[1737807594321,5.94716335,249.05,248.98,4.0168]
[1737807595120,0.02691719,249.04,248.98,4.0168]
[1737807595429,0.02691719,249.04,248.99,0.03078163]
[1737807597025,5.94716335,249.03,248.99,0.03078163]
[1737807598126,4.0164,249.02,248.99,0.03078163]
[1737807598920,5.94716335,249.03,248.99,0.03078163]
[1737807602127,9.96336335,249.03,248.99,0.03078163]
[1737807602328,5.94716335,249.03,248.99,0.03078163]
[1737807607631,5.94716335,249.01,248.99,0.03078163]
[1737807610328,4.0166,249.0,248.9,5.94716335]
[1737807610526,5.94716335,248.98,248.9,5.94716335]
[1737807611030,5.94716335,248.98,248.92,4.0179]
[1737807611533,0.02672854,248.97,248.93,0.03090572]
[1737807613136,0.02672854,248.97,248.95,4.0174]
[1737807614935,0.02672854,248.97,248.93,0.03090572]
[1737807615135,0.02672854,248.97,248.93,4.04860572]
[1737807616732,0.02672854,248.97,248.93,0.03090572]
[1737807616937,0.02672854,248.97,248.96,9.96436335]
[1737807617438,0.02672854,248.97,248.94,5.94716335]
[1737807617935,5.97389189,248.97,248.93,0.03090572]
[1737807618337,0.02672854,248.97,248.93,0.03090572]
[1737807619541,5.97389189,248.97,248.93,0.03090572]
[1737807620238,0.02672854,248.97,248.93,0.03090572]
[1737807621837,5.97389189,248.97,248.93,0.03090572]
[1737807622841,5.94716335,248.95,248.93,0.03090572]
[1737807623842,9.96466335,248.95,248.93,0.03090572]
[1737807626351,4.0176,248.94,248.93,0.03090572]
[1737807629046,5.94716335,248.95,248.83,5.94716335]
[1737807629240,5.94716335,248.88,248.81,1.3827]
[1737807629443,5.94716335,248.88,248.8,6.42797588]
[1737807629644,5.94716335,248.88,248.81,4.0196]
[1737807629848,5.94716335,248.84,248.8,6.42797588]
[1737807630139,5.94716335,248.84,248.75,5.94716335]
[1737807630140,5.94716335,248.82,248.75,5.94716335]
[1737807630346,5.94716335,248.82,248.8,0.02659599]
[1737807639051,9.96666335,248.82,248.8,0.02659599]
[1737807640055,4.0197,248.81,248.72,4.021]
[1737807640259,5.94716335,248.79,248.71,5.94716335]
[1737807640956,5.94716335,248.79,248.73,4.0209]
[1737807641156,0.02809024,248.77,248.73,4.05180991]
[1737807642057,0.02809024,248.77,248.73,0.03090991]
[1737807643160,5.97525359,248.77,248.73,0.03090991]
[1737807644562,5.94716335,248.75,248.73,0.03090991]
[1737807644761,9.96786335,248.75,248.73,0.03090991]
[1737807645166,5.94716335,248.75,248.73,0.03090991]
[1737807645369,9.96786335,248.75,248.73,0.03090991]
[1737807645768,5.94716335,248.75,248.73,0.03090991]
[1737807647167,5.97525359,248.77,248.73,0.03090991]
[1737807647561,0.02809024,248.77,248.75,4.0205]
[1737807647764,0.02809024,248.77,248.73,0.03090991]
[1737807648067,5.97525359,248.77,248.73,0.03090991]
[1737807652175,5.94716335,248.75,248.73,0.03090991]
[1737807653175,5.94716335,248.75,248.49,144.32967045]
[1737807653372,5.94716335,248.62,248.55,5.94716335]
[1737807654264,0.02575532,248.61,248.56,0.03065755]
[1737807654774,0.02575532,248.61,248.56,4.05435755]
[1737807655175,5.94716335,248.6,248.56,0.03065755]
[1737807655975,5.94716335,248.58,248.56,0.03065755]
[1737807656473,5.97291867,248.61,248.56,0.03065755]
[1737807657173,0.02575532,248.61,248.56,0.03065755]
[1737807658879,0.02575532,248.61,248.58,4.0233]
[1737807659078,0.02575532,248.61,248.56,0.03065755]
[1737807660479,0.02575532,248.61,248.57,5.94716335]
[1737807660778,0.02575532,248.61,248.6,4.0231]
[1737807661073,0.02575532,248.61,248.57,1.3303]
[1737807661278,0.02575532,248.61,248.57,5.3538]
[1737807662676,0.02575532,248.61,248.59,4.0232]
[1737807663179,0.02575532,248.61,248.57,1.3303]
[1737807663380,0.02575532,248.61,248.59,5.94716335]
[1737807663682,5.94716335,248.69,248.59,5.94716335]
[1737807663879,5.94716335,248.66,248.59,5.94716335]
[1737807664480,5.94716335,248.66,248.57,7.27746335]
[1737807664679,0.02644428,248.65,248.62,4.0227]
[1737807664881,0.02644428,248.65,248.6,0.02548413]
[1737807665182,5.94716335,248.62,248.6,0.02548413]
[1737807668180,5.94716335,248.64,248.6,0.02548413]
[1737807668381,0.02644428,248.65,248.6,0.02548413]
[1737807669277,0.02644428,248.65,248.63,4.0225]
[1737807670086,0.02644428,248.65,248.6,0.02548413]
[1737807670584,0.02644428,248.65,248.62,4.0227]
[1737807670881,0.02644428,248.65,248.6,0.02548413]
[1737807671979,5.94716335,248.63,248.6,0.02548413]
[1737807672580,5.94716335,248.61,248.6,0.02548413]
[1737807674284,5.94716335,248.61,248.51,7.26936335]
[1737807674484,5.94716335,248.57,248.51,1.3222]
[1737807674780,5.94716335,248.57,248.52,4.0243]
[1737807675176,5.94716335,248.59,248.51,7.26936335]
[1737807675684,0.02684114,248.57,248.53,0.02940502]
[1737807675889,0.02684114,248.57,248.55,4.0238]
[1737807676988,0.02684114,248.57,248.53,5.97656837]
[1737807677188,0.02684114,248.57,248.56,4.0237]
[1737807677682,0.02684114,248.57,248.53,5.97656837]
[1737807677891,0.02684114,248.57,248.55,4.0237]
[1737807678390,0.02684114,248.57,248.56,4.0237]
[1737807678891,0.02684114,248.57,248.53,0.02940502]
[1737807679094,0.02684114,248.57,248.55,4.0238]
[1737807679792,0.02684114,248.57,248.53,4.05340502]
[1737807679994,0.02684114,248.57,248.53,0.02940502]
[1737807681197,0.02684114,248.57,248.54,4.024]
[1737807682192,0.02684114,248.57,248.53,4.05350502]
[1737807685691,5.94716335,248.56,248.53,0.02940502]
[1737807685897,5.94716335,248.54,248.53,0.02940502]
[1737807688204,9.97116335,248.54,248.53,0.02940502]
[1737807688696,5.94716335,248.54,248.53,0.02940502]
[1737807689501,5.94716335,248.56,248.53,0.02940502]
[1737807690900,5.94716335,248.54,248.53,0.02940502]
[1737807691101,5.94716335,248.56,248.53,0.02940502]
[1737807691302,0.02684114,248.57,248.53,0.02940502]
[1737807691903,0.02684114,248.57,248.54,4.024]
[1737807692993,0.02684114,248.57,248.55,4.0238]
[1737807693598,0.02684114,248.57,248.53,4.05360502]
[1737807695504,0.02684114,248.57,248.53,0.02940502]
[1737807696204,0.02684114,248.57,248.54,4.024]
[1737807697101,0.02684114,248.57,248.53,0.02940502]
[1737807698206,0.02684114,248.57,248.53,4.05360502]
[1737807700502,0.02684114,248.57,248.53,0.02940502]
[1737807701409,0.02684114,248.57,248.55,4.0237]
[1737807702711,0.02684114,248.57,248.53,0.02940502]
[1737807703512,0.02684114,248.57,248.54,4.024]
[1737807703710,0.02684114,248.57,248.53,0.02940502]
[1737807704113,0.02684114,248.57,248.54,4.024]
[1737807705013,5.94716335,248.55,248.53,0.02940502]
[1737807705206,0.02684114,248.57,248.53,0.02940502]
[1737807705815,5.97400449,248.57,248.53,0.02940502]
[1737807707205,0.02684114,248.57,248.53,4.05350502]
[1737807714227,0.02684114,248.57,248.54,4.0239]
[1737807714924,0.02684114,248.57,248.53,4.05360502]
[1737807717326,0.02684114,248.57,248.53,0.02940502]
[1737807718927,0.02684114,248.57,248.53,4.05350502]
[1737807720428,5.94716335,248.68,248.56,5.94716335]
[1737807720628,5.94716335,248.7,248.62,5.94716335]
[1737807721032,5.94716335,248.67,248.6,5.94716335]
[1737807721224,5.94716335,248.67,248.58,5.94716335]
[1737807721429,5.94716335,248.65,248.58,5.94716335]
[1737807721631,5.97735198,248.65,248.6,0.03063943]
[1737807722735,0.03018863,248.65,248.62,5.94716335]
[1737807723131,0.03018863,248.65,248.64,4.0224]
[1737807723435,0.03018863,248.65,248.6,0.03063943]
[1737807723635,5.97735198,248.65,248.6,0.03063943]
[1737807723936,5.94716335,248.63,248.6,0.03063943]
[1737807725038,5.97735198,248.65,248.6,0.03063943]
[1737807726335,0.03018863,248.65,248.6,0.03063943]
[1737807726637,5.97735198,248.65,248.6,0.03063943]
[1737807727634,0.03018863,248.65,248.6,5.97780278]
[1737807728439,0.03018863,248.65,248.6,10.00070278]
[1737807729140,5.97735198,248.65,248.6,0.03063943]
[1737807733841,5.97735198,248.65,248.6,4.05363943]
[1737807734146,0.03018863,248.65,248.6,0.03063943]
[1737807734347,0.03018863,248.65,248.6,5.97780278]
[1737807736144,0.03018863,248.65,248.63,4.0225]
[1737807737746,0.03018863,248.65,248.64,4.0224]
[1737807738741,0.03018863,248.65,248.63,4.0226]
[1737807739542,0.03018863,248.65,248.64,4.0224]
[1737807739841,5.94716335,248.73,248.64,5.94716335]
[1737807740048,5.94716335,248.76,248.67,5.94716335]
[1737807740346,5.94716335,248.74,248.7,4.0214]
[1737807740545,5.94716335,248.72,248.62,5.94716335]
[1737807740745,3.9635645,248.81,248.63,4.0225]
[1737807740746,5.94716335,248.67,248.63,4.0225]
[1737807740946,5.94716335,248.67,248.6,5.94716335]
[1737807741144,5.9746077,248.67,248.63,0.02708244]
[1737807741546,0.02744435,248.67,248.64,5.94716335]
[1737807741746,0.02744435,248.67,248.66,5.94716335]
[1737807742143,5.94716335,248.78,248.66,5.94716335]
[1737807742447,5.94716335,248.8,248.71,5.94716335]
[1737807743047,5.94716335,248.78,248.71,5.94716335]
[1737807743341,9.99700622,248.78,248.73,0.02956244]
[1737807743950,5.94716335,248.76,248.73,0.02956244]
[1737807746150,5.94716335,248.74,248.73,0.02956244]
[1737807747151,5.94716335,248.76,248.73,0.02956244]
[1737807747744,5.97690622,248.78,248.73,0.02956244]
[1737807748349,0.02974287,248.78,248.73,0.02956244]
[1737807749154,0.02974287,248.78,248.75,4.0206]
[1737807749550,0.02974287,248.78,248.76,5.94716335]
[1737807749746,5.94716335,248.86,248.76,5.94716335]
[1737807749946,5.94716335,248.84,248.76,5.94716335]
[1737807750953,5.94716335,248.8,248.78,0.03003004]
[1737807751152,5.94716335,248.8,248.72,5.94716335]
[1737807751451,5.94716335,248.8,248.77,0.02794576]
[1737807752351,0.02536261,248.81,248.77,0.02794576]
[1737807753259,0.02536261,248.81,248.79,5.94716335]
[1737807754454,0.02536261,248.81,248.8,4.0198]
[1737807754855,5.94716335,248.91,248.79,5.94716335]
[1737807755056,5.94716335,248.89,248.83,5.94716335]
[1737807755555,5.94716335,248.91,248.83,5.94716335]
[1737807755750,4.0183,248.9,248.83,5.94716335]
[1737807756154,5.94716335,248.87,248.84,0.02631381]
[1737807756363,4.0194,248.83,248.77,5.94716335]
[1737807756559,9.96656335,248.83,248.77,5.94716335]
[1737807756857,5.94716335,248.85,248.77,5.94716335]
[1737807757255,4.0192,248.84,248.77,9.96746335]
[1737807757559,0.026187,248.83,248.77,9.96746335]
[1737807757759,0.026187,248.83,248.78,0.02812993]
[1737807758853,0.026187,248.83,248.8,4.0198]
[1737807759157,0.026187,248.83,248.81,5.94716335]
[1737807761960,0.026187,248.83,248.79,5.94716335]
[1737807762163,0.026187,248.83,248.78,0.02812993]
[1737807762464,5.94716335,248.81,248.78,0.02812993]
[1737807762664,5.94716335,248.79,248.71,5.94716335]
[1737807762963,5.94716335,248.79,248.72,4.0211]
[1737807763866,0.02698057,248.78,248.74,4.0207]
[1737807764068,4.0198,248.81,248.75,5.94716335]
[1737807764365,0.02699619,248.78,248.75,5.94716335]
[1737807764565,0.02699619,248.78,248.76,4.0205]
[1737807766463,0.02699619,248.78,248.75,5.94716335]
[1737807766968,0.02699619,248.78,248.77,5.94716335]
[1737807767162,0.02699619,248.78,248.77,9.96746335]
[1737807768667,0.02699619,248.78,248.75,9.96766335]
[1737807769869,0.02699619,248.78,248.77,5.94716335]
[1737807771468,0.02699619,248.78,248.75,5.94716335]
[1737807774365,0.02699619,248.78,248.74,0.0263489]
[1737807774568,5.94716335,248.77,248.74,0.0263489]
[1737807774769,0.02699619,248.78,248.74,0.0263489]
[1737807777074,4.04719619,248.78,248.74,0.0263489]
[1737807777975,0.02699619,248.78,248.74,0.0263489]
[1737807778774,4.04719619,248.78,248.74,0.0263489]
[1737807779881,4.0203,248.77,248.74,0.0263489]
[1737807780475,5.94716335,248.75,248.67,5.94716335]
[1737807780678,5.94716335,248.73,248.65,5.94716335]
[1737807781782,0.03048976,248.71,248.67,0.0293996]
[1737807782579,0.03048976,248.71,248.68,4.0217]
[1737807782972,0.03048976,248.71,248.69,5.94716335]
[1737807783984,0.03048976,248.71,248.67,5.97656295]
[1737807784173,5.97765311,248.71,248.67,0.0293996]
[1737807784375,5.94716335,248.69,248.67,0.0293996]
[1737807784681,4.0218,248.68,248.67,0.0293996]
[1737807784881,5.94716335,248.69,248.67,0.0293996]
[1737807785182,0.03048976,248.71,248.67,0.0293996]
[1737807785380,0.03048976,248.71,248.67,5.97656295]
[1737807787083,0.03048976,248.71,248.67,9.99836295]
[1737807788084,0.03048976,248.71,248.67,0.0293996]
[1737807790083,0.03048976,248.71,248.67,4.0512996]
[1737807792087,0.03048976,248.71,248.67,0.0293996]
[1737807792387,0.03048976,248.71,248.68,4.0217]
[1737807793586,0.03048976,248.71,248.67,0.0293996]
[1737807793883,5.97765311,248.71,248.67,0.0293996]
[1737807795289,0.03048976,248.71,248.68,4.0217]
[1737807795688,0.03048976,248.71,248.69,5.94716335]
[1737807796587,0.03048976,248.71,248.7,4.0214]
[1737807796985,0.03048976,248.71,248.67,5.97656295]
[1737807798182,0.03048976,248.71,248.69,4.0216]
[1737807801589,0.03048976,248.71,248.69,5.94716335]
[1737807801788,5.94716335,248.82,248.76,4.0204]
[1737807802691,5.94716335,248.8,248.72,5.94716335]
[1737807802892,5.94716335,248.8,248.77,0.02634699]
[1737807803583,5.94716335,248.78,248.77,0.02634699]
[1737807805195,5.94716335,248.8,248.77,0.02634699]
[1737807805892,5.94716335,248.78,248.77,0.02634699]
[1737807812603,9.96726335,248.78,248.77,0.02634699]
[1737807814505,4.0204,248.77,248.68,7.28946335]
[1737807814698,5.94716335,248.75,248.68,7.28946335]
[1737807815397,5.94716335,248.75,248.71,4.0213]
[1737807815597,0.02960688,248.74,248.71,4.0213]
[1737807816400,0.02960688,248.74,248.7,5.94716335]
[1737807817204,0.02960688,248.74,248.73,4.0209]
[1737807819706,5.94716335,248.83,248.72,5.94716335]
[1737807819907,5.94716335,248.85,248.77,5.94716335]
[1737807820310,4.0192,248.84,248.77,9.96726335]
[1737807820510,5.94716335,248.85,248.77,9.96726335]
[1737807820911,0.0281007,248.83,248.79,0.0287974]
[1737807822614,5.94716335,248.81,248.79,0.0287974]
[1737807827820,5.97526405,248.83,248.79,0.0287974]
[1737807828323,0.0281007,248.83,248.79,4.0485974]
[1737807829225,0.0281007,248.83,248.79,0.0287974]
[1737807829425,0.0281007,248.83,248.82,4.0195]
[1737807833824,5.94716335,248.92,248.87,4.0186]
[1737807835128,5.97414929,248.92,248.87,4.04530375]
[1737807835529,0.02698594,248.92,248.87,0.02670375]
[1737807836233,0.02698594,248.92,248.89,4.0182]
[1737807838120,5.97414929,248.92,248.89,4.0182]
[1737807839524,5.97414929,248.92,248.87,0.02670375]
[1737807839722,5.97414929,248.92,248.9,4.0182]
[1737807840125,0.02698594,248.92,248.88,5.94716335]
[1737807840334,0.02698594,248.92,248.91,4.018]
[1737807841030,5.94716335,249.01,248.97,4.0169]
[1737807841331,5.94716335,249.01,248.95,5.94716335]
[1737807841831,5.94716335,249.01,248.96,4.0171]
[1737807842127,0.02625557,249.01,248.96,4.04529641]
[1737807842528,0.02625557,249.01,248.97,4.017]
[1737807843132,0.02625557,249.01,248.96,0.02819641]
[1737807844131,0.02625557,249.01,248.96,4.04539641]
[1737807847736,5.94716335,248.99,248.96,0.02819641]
[1737807847936,5.94716335,248.97,248.96,0.02819641]
[1737807851131,4.0169,248.98,248.96,0.02819641]
[1737807851332,5.94716335,248.99,248.96,0.02819641]
[1737807851539,5.97341892,249.01,248.96,0.02819641]
[1737807852229,5.94716335,248.99,248.96,0.02819641]
[1737807854645,4.017,248.98,248.96,0.02819641]
[1737807856243,5.94716335,248.97,248.88,2.6131]
[1737807856538,5.94716335,248.94,248.86,4.0188]
[1737807856738,5.94716335,248.92,248.86,4.0188]
[1737807856942,5.94716335,248.92,248.85,5.94716335]
[1737807857142,5.94716335,248.94,248.87,9.96586335]
[1737807857647,0.02937729,248.93,248.88,0.02901352]
[1737807859150,4.0179,248.92,248.88,0.02901352]
[1737807863157,4.0182,248.91,248.88,0.02901352]
[1737807863655,5.94716335,248.92,248.88,0.02901352]
[1737807864953,5.94716335,248.9,248.88,0.02901352]
[1737807865257,5.94716335,248.9,248.81,5.94716335]
[1737807865453,5.94716335,248.87,248.81,5.94716335]
[1737807865857,5.94716335,248.89,248.81,5.94716335]
[1737807866362,4.04696861,248.87,248.83,0.02861724]
[1737807871366,0.02816861,248.87,248.83,0.02861724]
[1737807873866,5.97533196,248.87,248.83,0.02861724]
[1737807874164,9.96626335,248.85,248.83,0.02861724]
[1737807875271,5.94716335,248.85,248.83,0.02861724]
[1737807875770,4.0189,248.86,248.83,0.02861724]
[1737807876467,0.02816861,248.87,248.83,0.02861724]
[1737807883973,5.97533196,248.87,248.83,0.02861724]
[1737807892769,5.97533196,248.87,248.83,4.04791724]
[1737807892975,5.97533196,248.87,248.83,0.02861724]
[1737807898276,9.99403196,248.87,248.83,0.02861724]
[1737807902582,5.94716335,248.85,248.83,0.02861724]
[1737807903685,4.04686861,248.87,248.83,0.02861724]
[1737807903686,0.02816861,248.87,248.83,0.02861724]
[1737807904186,0.02816861,248.87,248.83,5.97578059]
[1737807904382,0.02816861,248.87,248.83,4.04781724]
[1737807906284,5.97533196,248.87,248.83,4.04781724]
[1737807906485,5.97533196,248.87,248.83,0.02861724]
[1737807907186,5.97533196,248.87,248.83,4.04781724]
[1737807908288,5.97533196,248.87,248.83,0.02861724]
[1737807908981,0.02816861,248.87,248.84,4.0191]
[1737807909684,3.9938,248.98,248.86,9.96596335]
[1737807909685,9.96456335,248.95,248.86,9.96596335]
[1737807909889,4.0174,248.95,248.88,5.94716335]
[1737807910089,5.94716335,248.97,248.88,5.94716335]
[1737807910682,5.94716335,248.97,248.91,4.0179]
[1737807910886,0.02879496,248.95,248.91,4.0179]
[1737807911084,0.02879496,248.95,248.9,0.02949202]
[1737807911486,0.02879496,248.95,248.9,4.04769202]
[1737807912581,0.02879496,248.95,248.9,0.02949202]
[1737807912582,5.97595831,248.95,248.9,0.02949202]
[1737807913282,5.94716335,248.91,248.9,0.02949202]
[1737807913789,5.94716335,248.91,248.79,5.94716335]
[1737807913987,5.94716335,248.87,248.79,5.94716335]
[1737807914784,5.94716335,248.87,248.81,4.0195]
[1737807914984,0.0284839,248.86,248.81,4.04854544]
[1737807915189,5.94716335,248.85,248.81,0.02904544]
[1737807915791,5.94716335,248.83,248.81,0.02904544]
[1737807919795,9.96626335,248.85,248.81,0.02904544]
[1737807920996,5.94716335,248.85,248.81,0.02904544]
[1737807922694,5.94716335,248.85,248.81,4.04864544]
[1737807923492,5.94716335,248.85,248.81,0.02904544]
[1737807926898,9.96646335,248.83,248.81,0.02904544]